[Event "Turkey IS Bank Super League 2017"]
[Site "Darica-Kocaeli"]
[Date "2017.07.30"]
[Round "5"]
[White "Kargaci, Humeyra"]
[Black "Avramidou, Anastasia"]
[Result "0-1"]
[ECO "E18"]
[WhiteElo "1737"]
[BlackElo "2247"]
[Annotator "NA"]
[PlyCount "92"]
[EventType "team-tourn"]
[EventCountry "TUR"]
[SourceTitle "playchess.com"]
[Source "ChessBase"]
[SourceQuality "1"]
[TimeControl "40/5400+30:1800+30"]

1. d4 {[%emt 0:00:30]} Nf6 {[%emt 0:01:00]} 2. Nf3 {[%emt 0:00:30]} e6 {[%emt 0:00:30]} 3. c4 {[%emt 0:00:30]} b6 {[%emt 0:00:30]} 4. Nc3 {[%emt 0:00:30]} Bb7 {[%emt 0:00:00]} 5. g3 {[%emt 0:00:30]} d5 {[%emt 0:01:00]} 6. cxd5 {[%emt 0:00:30]} exd5 {[%emt 0:00:30]} 7. Bg2 {[%emt 0:00:30]} Be7 {[%emt 0:00:30]} 8. Bf4 {[%emt 0:00:30]} O-O {[%emt 0:00:30]} 9. O-O {[%emt 0:00:30]} Na6 {[%emt 0:03:30]} 10. Rc1 {[%emt 0:01:30]} Re8 {[%emt 0:04:30]} 11. Qc2 {[%emt 0:08:30]} c6 {[%emt 0:08:30]} 12. Rfd1 {[%emt 0:03:30]} Nc7 {[%emt 0:05:30]} 13. Nh4 $11 {[%emt 0:15:30]} Ne6 {[%emt 0:03:30]} 14. Nf5 {[%emt 0:02:30]} Nxf4 {[%emt 0:01:30]} 15. Nxe7+ {[%emt 0:00:30]} Qxe7 {[%emt 0:08:30]} 16. gxf4 {[%emt 0:00:30]} Ng4 {[%emt 0:00:00]} 17. h3 {[%emt 0:00:30]} Nh6 {[%emt 0:00:00]} 18. e3 {[%emt 0:02:30]} Qh4 {[%emt 0:05:30]} 19. Ne2 {[%emt 0:06:30]} Re6 {[%emt 0:04:30]} 20. f5 {[%emt 0:10:30]} Rf6 {[%emt 0:04:30]} 21. Ng3 {[%emt 0:00:30]} Re8 {[%emt 0:01:30]} 22. e4 {[%emt 0:13:30]} Bc8 {[%emt 0:10:30]} 23. e5 {[%emt 0:11:39]} Bxf5 {[%emt 0:03:30]} 24. Nxf5 {[%emt 0:00:34]} Rxf5 {[%emt 0:00:30]} 25. Qxc6 {[%emt 0:00:00]} Qxf2+ {[%emt 0:01:30]} 26. Kh1 {[%emt 0:00:49]} Rf8 {[%emt 0:00:30]} 27. Qxd5 {[%emt 0:00:00]} Rg5 {[%emt 0:08:30]} 28. Rf1 {[%emt 0:04:16]} Qxb2 {[%emt 0:00:30]} 29. Rc7 {[%emt 0:00:10]} g6 {[%emt 0:06:45]} 30. Rxa7 {[%emt 0:05:29]} Rf5 {[%emt 0:04:09]} 31. Rxf5 {[%emt 0:03:00]} Nxf5 {[%emt 0:00:05]} 32. e6 {[%emt 0:00:24]} Qc1+ {[%emt 0:00:30]} 33. Kh2 {[%emt 0:00:30]} Qf4+ {[%emt 0:00:00]} 34. Kg1 {[%emt 0:03:31]} Qe3+ {[%emt 0:00:00]} 35. Kh2 {[%emt 0:00:08]} fxe6 {[%emt 0:06:39]} 36. Qd7 {[%emt 0:02:33]} Qf4+ {[%emt 0:00:07]} 37. Kg1 {[%emt 0:02:08]} Qxd4+ {[%emt 0:00:30]} 38. Qxd4 {[%emt 0:00:30]} Nxd4 {[%emt 0:00:00]} 39. Rb7 {[%emt 0:00:00]} b5 {[%emt 0:00:08]} 40. Rd7 {[%emt 0:00:00]} Ne2+ {[%emt 0:02:07]} 41. Kh1 {[%emt 0:02:49]} Rf2 {[%emt 0:01:30]} 42. Bc6 {[%emt 0:01:30]} b4 {[%emt 0:02:30]} 43. Rb7 {[%emt 0:01:30]} Nd4 {[%emt 0:01:30]} 44. Ba4 {[%emt 0:01:30]} Nf3 {[%emt 0:00:30]} 45. Rb8+ {[%emt 0:01:30]} Kg7 {[%emt 0:00:30]} 46. Rb7+ {[%emt 0:01:30]} Kh6 {[%emt 0:00:00]} 0-1

[Event "Turkey IS Bank Super League 2017"]
[Site "Darica-Kocaeli"]
[Date "2017.07.30"]
[Round "5"]
[White "Aluc, Bulut Evrim"]
[Black "Ayazmali, Gizem"]
[Result "1-0"]
[ECO "E77"]
[WhiteElo "1699"]
[BlackElo "1849"]
[Annotator "NA"]
[PlyCount "105"]
[EventType "team-tourn"]
[EventCountry "TUR"]
[SourceTitle "playchess.com"]
[Source "ChessBase"]
[SourceQuality "1"]
[TimeControl "40/5400+30:1800+30"]

1. d4 {[%emt 0:00:30]} Nf6 {[%emt 0:02:00]} 2. c4 {[%emt 0:00:30]} g6 {[%emt 0:00:30]} 3. Nc3 {[%emt 0:00:30]} Bg7 {[%emt 0:00:30]} 4. e4 {[%emt 0:00:30]} d6 {[%emt 0:00:00]} 5. f4 {[%emt 0:00:00]} c5 {[%emt 0:00:00]} 6. d5 {[%emt 0:00:00]} O-O $11 {[%emt 0:00:00] LiveBook: 562 Games} 7. Nf3 {[%emt 0:00:00]} e6 {[%emt 0:00:00]} 8. Be2 {[%emt 0:13:00]} exd5 {[%emt 0:00:30]} 9. exd5 {[%emt 0:01:30]} Bf5 {[%emt 0:07:30]} 10. O-O {[%emt 0:00:30]} Re8 {[%emt 0:04:30]} 11. Bd3 {[%emt 0:06:30]} Ne4 {[%emt 0:15:30]} 12. Nxe4 {[%emt 0:00:30]} Bxe4 {[%emt 0:00:00]} 13. Bxe4 {[%emt 0:01:30]} Rxe4 {[%emt 0:00:00]} 14. Qc2 {[%emt 0:00:30]} Qe7 {[%emt 0:05:30]} 15. Bd2 {[%emt 0:09:30]} Nd7 {[%emt 0:09:30]} 16. Rae1 {[%emt 0:01:30]} Re8 {[%emt 0:01:30]} 17. Qc1 {[%emt 0:18:30]} Rxe1 {[%emt 0:04:30]} 18. Rxe1 {[%emt 0:01:30]} Qd8 {[%emt 0:00:30]} 19. Bc3 {[%emt 0:03:30]} Nf6 {[%emt 0:05:30]} 20. Qb1 {[%emt 0:08:30]} Re7 {[%emt 0:05:30]} 21. f5 {[%emt 0:05:30]} Qe8 {[%emt 0:03:30]} 22. fxg6 {[%emt 0:02:30]} hxg6 {[%emt 0:00:30]} 23. Rxe7 {[%emt 0:04:30]} Qxe7 {[%emt 0:00:30]} 24. Qe1 {[%emt 0:02:01]} Qxe1+ {[%emt 0:15:03]} 25. Nxe1 {[%emt 0:00:02]} Ng4 {[%emt 0:00:18]} 26. Bxg7 {[%emt 0:02:22]} Kxg7 {[%emt 0:00:09]} 27. Nf3 {[%emt 0:00:46]} Ne3 {[%emt 0:01:30]} 28. b3 {[%emt 0:00:25]} Nd1 {[%emt 0:01:23]} 29. h3 {[%emt 0:02:06]} Nc3 {[%emt 0:01:08]} 30. a4 {[%emt 0:01:05]} Kf6 {[%emt 0:03:59]} 31. g4 {[%emt 0:00:40]} g5 {[%emt 0:06:49]} 32. Kf2 {[%emt 0:01:56]} Kg6 {[%emt 0:03:11]} 33. Ke3 {[%emt 0:04:12]} f5 {[%emt 0:01:29]} 34. gxf5+ {[%emt 0:03:30]} Kxf5 {[%emt 0:00:09]} 35. Nd2 {[%emt 0:00:38]} Nd1+ {[%emt 0:03:22]} 36. Kf3 {[%emt 0:01:36]} Nc3 {[%emt 0:00:30]} 37. Ke3 {[%emt 0:01:22]} Nd1+ {[%emt 0:00:12]} 38. Kf3 {[%emt 0:00:46]} Nc3 {[%emt 0:00:05]} 39. Ke3 {[%emt 0:00:19]} Ke5 {[%emt 0:00:50]} 40. Kd3 {[%emt 0:00:00]} Nd1 {[%emt 0:01:23]} 41. Ne4 {[%emt 0:03:14]} Nb2+ {[%emt 0:21:03]} 42. Ke3 {[%emt 0:02:30]} Nd1+ {[%emt 0:01:11]} 43. Kf3 {[%emt 0:00:30]} Nb2 {[%emt 0:02:24]} 44. Nxg5 {[%emt 0:00:30]} Nd3 {[%emt 0:04:03]} 45. Nf7+ {[%emt 0:00:30]} Kf6 {[%emt 0:00:06]} 46. Nxd6 {[%emt 0:00:30]} b6 {[%emt 0:00:52]} 47. Ne4+ {[%emt 0:02:30]} Ke5 {[%emt 0:00:13]} 48. d6 {[%emt 0:00:30]} Ke6 {[%emt 0:00:16]} 49. h4 {[%emt 0:00:30]} Nc1 {[%emt 0:02:44]} 50. h5 {[%emt 0:00:30]} Nxb3 {[%emt 0:00:05]} 51. h6 {[%emt 0:00:30]} Nd4+ {[%emt 0:00:30]} 52. Kf4 {[%emt 0:00:00]} Kf7 {[%emt 0:00:20]} 53. Ng5+ {[%emt 0:02:00]} 1-0

[Event "Turkey IS Bank Super League 2017"]
[Site "Darica-Kocaeli"]
[Date "2017.07.30"]
[Round "5"]
[White "Agirsoy, Omer Faruk"]
[Black "Gulden, Egemen"]
[Result "1-0"]
[ECO "C76"]
[WhiteElo "1678"]
[BlackElo "2044"]
[Annotator "NA"]
[PlyCount "83"]
[EventType "team-tourn"]
[EventCountry "TUR"]
[SourceTitle "playchess.com"]
[Source "ChessBase"]
[SourceQuality "1"]
[TimeControl "40/5400+30:1800+30"]

1. e4 {[%emt 0:00:30]} e5 {[%emt 0:01:00]} 2. Nf3 {[%emt 0:00:30]} Nc6 {[%emt 0:00:30]} 3. Bb5 {[%emt 0:00:30]} a6 {[%emt 0:00:30]} 4. Ba4 {[%emt 0:00:30]} d6 {[%emt 0:00:30]} 5. c3 {[%emt 0:01:30]} Bd7 $14 {[%emt 0:00:30] LiveBook: 854 Games} 6. O-O {[%emt 0:00:30]} Nge7 {[%emt 0:02:30]} 7. d4 {[%emt 0:00:00]} g6 {[%emt 0:02:30]} 8. Be3 {[%emt 0:00:00]} Bg7 {[%emt 0:00:30]} 9. Nbd2 {[%emt 0:04:30]} O-O {[%emt 0:00:30]} 10. Bb3 {[%emt 0:00:30]} h6 {[%emt 0:03:30]} 11. h3 {[%emt 0:02:30]} Qc8 {[%emt 0:13:30]} 12. Re1 {[%emt 0:08:30]} b6 {[%emt 0:06:30]} 13. a3 {[%emt 0:01:30]} Nd8 {[%emt 0:01:30]} 14. Qe2 {[%emt 0:08:30]} Ne6 {[%emt 0:10:30]} 15. dxe5 {[%emt 0:02:30]} dxe5 {[%emt 0:00:30]} 16. Nc4 {[%emt 0:03:30]} Nc6 {[%emt 0:02:30]} 17. Rad1 {[%emt 0:01:30]} b5 {[%emt 0:02:30]} 18. Ncd2 {[%emt 0:00:30]} Ncd8 {[%emt 0:06:30]} 19. Nf1 {[%emt 0:08:30]} Kh7 {[%emt 0:05:30]} 20. Qd2 {[%emt 0:01:30]} Be8 {[%emt 0:03:30]} 21. N1h2 {[%emt 0:01:30]} f5 {[%emt 0:08:30]} 22. exf5 {[%emt 0:04:30]} gxf5 {[%emt 0:00:30]} 23. Bc2 {[%emt 0:00:30]} e4 {[%emt 0:04:30]} 24. Nh4 {[%emt 0:00:30]} Bc6 {[%emt 0:02:30]} 25. Qe2 {[%emt 0:06:30]} Nb7 {[%emt 0:01:50]} 26. f3 {[%emt 0:04:30]} Nd6 {[%emt 0:02:28]} 27. fxe4 {[%emt 0:00:30]} fxe4 {[%emt 0:03:56]} 28. Ng4 {[%emt 0:06:30]} Qe8 {[%emt 0:04:25]} 29. Bxh6 {[%emt 0:11:30]} Bxh6 {[%emt 0:03:52]} 30. Rxd6 {[%emt 0:00:00]} cxd6 {[%emt 0:03:22]} 31. Bxe4+ {[%emt 0:00:00]} Bxe4 {[%emt 0:00:30]} 32. Qxe4+ {[%emt 0:00:30]} Kg7 {[%emt 0:01:02]} 33. Nxh6 {[%emt 0:02:45]} Kxh6 {[%emt 0:02:05]} 34. Nf5+ {[%emt 0:04:56]} Kg5 {[%emt 0:01:17]} 35. Qg4+ {[%emt 0:00:30]} Kf6 {[%emt 0:00:00]} 36. Nxd6 {[%emt 0:00:04]} Qd7 {[%emt 0:01:05]} 37. Ne4+ {[%emt 0:00:27]} Kf7 {[%emt 0:01:25]} 38. Ng5+ {[%emt 0:00:11]} Ke7 {[%emt 0:00:07]} 39. Nxe6 {[%emt 0:00:18]} Qd2 {[%emt 0:00:32]} 40. Qh4+ {[%emt 0:00:00]} Kd6 {[%emt 0:30:58]} 41. Nxf8 {[%emt 0:01:19]} Rxf8 {[%emt 0:00:00]} 42. Qe7+ {[%emt 0:00:30]} 1-0